{"text_format":"1","workbook":"xlsx","n_sheets":2,"sheets":["07 mars 2018","DATA"],"not_rendered":{"charts":0,"images":1,"macros":1,"external_links":0,"defined_names":2,"comments":0,"pivot_tables":0},"unopened":[],"bounds":{"document_bytes":16777216,"sheet_cells":100000,"rows_first":2000,"rows_last":500,"rows_between":2000,"halvings":0,"cell_chars":16384,"cell_head_chars":4096},"cells_cut":0,"cells_raw":0,"read":"whole","date_system":"1900"}

{"sheet":"07 mars 2018","index":0,"n_rows":33,"n_cols":33,"rows_kept":33,"cut":false,"hidden":false,"merged":[[32,0,32,1],[31,0,31,1],[0,0,2,1],[4,2,4,3],[0,2,0,4],[4,4,4,5],[1,2,1,4],[2,2,2,4],[4,0,5,0],[32,2,32,5],[31,2,31,5],[31,25,32,26],[0,24,1,26],[2,24,3,26],[0,5,0,23],[1,5,1,23],[2,5,2,23],[3,0,3,23],[4,1,5,1],[4,26,5,26],[4,25,5,25]]}
[null,null,"CONTREMAITRE :",null,null,null,null,null,null,null,null,null,null,null,null,null,null,null,null,null,null,null,null,null,{"$f":"PROPER(TEXT(Y3,\"jjjj\"))","v":"Mercredi"}]
[null,null,"PROJET :"]
[null,null,"N°",null,null,{"$f":"IFERROR(VLOOKUP(F2,JOBS,2,0),\"\")","v":""},null,null,null,null,null,null,null,null,null,null,null,null,null,null,null,null,null,null,"2018-03-07"]
[]
[null,"NOM DE L'EMPLOYÉ","HEURE A.M.",null,"HEURE P.M.",null,"000",null,null,null,null,null,null,null,null,null,null,null,null,null,null,null,null,null,null,"TOTAL","ÉQUIPEMENTS"]
[null,null,"DE","À","DE","À"]
[1,null,7,12,12.5,15.5,null,null,null,null,null,null,null,null,null,null,null,null,null,null,null,null,null,null,null,{"$f":"SUM(H7:Y7)","v":0}]
[2,null,7,12,12.5,15.5,null,null,null,null,null,null,null,null,null,null,null,null,null,null,null,null,null,null,null,0]
[3,null,7,12,12.5,15.5,null,null,null,null,null,null,null,null,null,null,null,null,null,null,null,null,null,null,null,0]
[4,null,7,12,12.5,15.5,null,null,null,null,null,null,null,null,null,null,null,null,null,null,null,null,null,null,null,0,"BOBCAT  S150   690"]
[5,null,7,12,12.5,15.5,null,null,null,null,null,null,null,null,null,null,null,null,null,null,null,null,null,null,null,0]
[6,null,7,12,12.5,15.5,null,null,null,null,null,null,null,null,null,null,null,null,null,null,null,null,null,null,null,0,null,null," "]
[7,null,7,12,12.5,15.5,null,null,null,null,null,null,null,null,null,null,null,null,null,null,null,null,null,null,null,0,null,null,null," "]
[8,null,7,12,12.5,15.5,null,null,null,null,null,null,null,null,null,null,null,null,null,null,null,null,null,null,null,0]
[9,null,7,12,12.5,15.5,null,null,null,null,null,null,null,null,null,null,null,null,null,null,null,null,null,null,null,0]
[10,null,7,12,12.5,15.5,null,null,null,null,null,null,null,null,null,null,null,null,null,null,null,null,null,null,null,0,null,null," "]
[11,null,null,null,null,null,null,null,null,null,null,null,null,null,null,null,null,null,null,null,null,null,null,null,null,0,null," ",null,null,null," "]
[12,null,null,null,null,null,null,null,null,null,null,null,null,null,null,null,null,null,null,null,null,null,null,null,null,0,null," ",null," "]
[13,null,null,null,null,null,null,null,null,null,null,null,null,null,null,null,null,null,null,null,null,null,null,null,null,0,null,null,null,null,null,null," "]
[14,null,null,null,null,null,null,null,null,null,null,null,null,null,null,null,null,null,null,null,null,null,null,null,null,0,"MARTEAU KUBOTA KXB 400N 555",null," "]
[15,null,null,null,null,null,null,null,null,null,null,null,null,null,null,null,null,null,null,null,null,null,null,null,null,0,"MARTEAU ATLAS COPCO 1060"," ",null," "]
[16,null,null,null,null,null,null,null,null,null,null,null,null,null,null,null,null,null,null,null,null,null,null,null,null,0]
[17,null,null,null,null,null,null,null,null,null,null,null,null,null,null,null,null,null,null,null,null,null,null,null,null,0,null,null," "]
[18,null,null,null,null,null,null,null,null,null,null,null,null,null,null,null,null,null,null,null,null,null,null,null,null,0,null," "]
[19,null,null,null,null,null,null,null,null,null,null,null,null,null,null,null,null,null,null,null,null,null,null,null,null,0,null,null,null,null," "]
[20,null,null,null,null,null,null,null,null,null,null,null,null,null,null,null,null,null,null,null,null,null,null,null,null,0]
[21,null,null,null,null,null,null,null,null,null,null,null,null,null,null,null,null,null,null,null,null,null,null,null,null,0,"COMPRESSEUR  185 CFM  685"]
[22,null,null,null,null,null,null,null,null,null,null,null,null,null,null,null,null,null,null,null,null,null,null,null,null,0]
[23,null,null,null,null,null,null,null,null,null,null,null,null,null,null,null,null,null,null,null,null,null,null,null,null,0]
[24,null,null,null,null,null,null,null,null,null,null,null,null,null,null,null,null,null,null,null,null,null,null,null,null,0]
[25,null,null,null,null,null,null,null,null,null,null,null,null,null,null,null,null,null,null,null,null,null,null,null,null,0]
[null,null,"CODES",null,null,null,{"$f":"G5","v":"000"},0,0,0,0,0,0,0,0,0,0,0,0,0,0,0,0,0,{"$f":"SUM(Y7:Y31)","v":0}]
[null,null,"TOTAL",null,null,null,{"$f":"SUM(G7:G31)","v":0},{"$f":"SUM(H7:H31)","v":0},0,0,0,0,0,0,0,{"$f":"SUM(P7:P31)","v":0},0,0,null,null,null,null,0,0]

{"sheet":"DATA","index":1,"n_rows":177,"n_cols":2,"rows_kept":177,"cut":false,"hidden":false,"merged":[]}
["ÉQUIPEMENTS"]
["BOBCATS , BROUETTES , LOADERS"]
["BOBCAT  763   130"]
["BOBCAT  753   145"]
["BOBCAT  753   265"]
["BOBCAT  763G   360"]
["BOBCAT  763G   420"]
["BOBCAT  S150   450"]
["TRANSPORTEUR BÉTON  460"]
["TRANSPORTEUR BÉTON  475"]
["BOBCAT  S185   545"]
["BOBCAT  S150   620"]
["BOBCAT  S150   690"]
["BOBCAT  S150   695"]
["CHARGEUR CAT  745"]
["CHARGEUR CAT  835"]
["BOBCAT CAT 226B  855"]
["BOBCAT S160  920"," "]
["BOBCAT S160  925"," "]
["BOBCAT S160  945"]
["BOBCAT S160  950"]
["BOBCAT S160  1010"]
["BOBCAT S160  1015"]
["BOBCAT S160  1020"]
["BROUETTE YANMAR  1030"]
["BROUETTE YANMAR  1035"]
["BOBCAT 553  1040"]
["BOBCAT S550  1095"]
["TRANSPORTEUR BÉTON  1105"]
["PELLE BOBCAT  322 495"]
["PELLE KUBOTA KX-41-3 580"]
["PELLE CATER 304  CCR 615"]
["PELLE KOMATSU  PC 27 750"]
["PELLE KUBOTA KX-41-3 755"]
["PELLE KOMATSU PC 35  865"]
["PELLE CATER 304  CCR 900"]
["PELLE KUBOTA KX-18 1110"]
["COMPRESSEURS"]
["COMPRESSEUR  245"]
["COMPRESSEUR  375 CFM  530"]
["COMPRESSEUR  100HP  560"]
["COMPRESSEUR  LS-60 600"]
["COMPRESSEUR  185 CFM  685"]
["COMPRESSEUR 375 CFM 825"]
["COMPRESSEUR 375 CFM 830"]
["COMPRESSEUR 375 CFM 960"]
["COMPRESSEUR 185 CFM  1050"]
["COMPRESSEUR 375 CFM  1075"]
["LIFTS"]
["LIFT TOYOTA FG25 135"]
["LIFT TOYOTA   275"]
["CHARIOT HYSTER  H50XM  340"]
["CHARIOT HYSTER H110XL  490"]
["PEGASUS   795"]
["NACELLE GÉNIE S45  890"]
["NACELLE SNORKEL TBA 60  895"]
["CHARIOT ÉLÉVATEUR MERLOT  980"]
["NACELLE GÉNIE S60 985"]
["TRAMACS"]
["MARTEAU KUBOTA KXB 400N 480"]
["MARTEAU KUBOTA KXB 400N 540"]
["MARTEAU KUBOTA KXB 400N 555"]
["MARTEAU KUBOTA KXB 400N 595"]
["MARTEAU KUBOTA KXB 400N 610"]
["MARTEAU D&A 360-v   720"]
["MARTEAU KUBOTA   730"]
["MARTEAU KUBOTA   735"]
["MARTEAU KUBOTA   740"]
["SCARIFICATEUR  BOBCAT 760"]
["MARTEAU CATERPILLAR  H55DS 780"]
["MARTEAU CATERPILLAR  H45DS 785"]
["MARTEAU CATERPILLAR  H45DS 800"]
["CISAILLE À BÉTON DARDA  560  860"]
["MARTEAU CATERPILLAR  H55DS 930"]
["MARTEAU BOBCAT HB680  ????"]
["MARTEAU BOBCAT HB680  ????"]
["MARTEAU ATLAS COPCO 1060"]
["MARTEAU ATLAS COPCO 1065"]
["MARTEAU INDECO H500 1115"]
["HYDRO"]
["ROBOT  NLB 4400   100"]
["ROBOT  NLB 4400   110"]
["POMPE NLB   205"]
["POMPE NLB 202500  215"]
["POMPE NLB 202500  220"]
["SPIN 20K GRATTE CLEANER 235"]
["ROBOT NLB (4400) 325"]
["POMPE NLB   330"]
["ROBOT NLB 4400  510"]
["POMPE NLB 20600  515"]
["ROBOT AQUAJET 710V 880"]
["SPINJET HONDA  ???"]
["SPINJET HONDA  ???"]
["ROBOT AQUAJET 710V  1080"]
["CAMIONS"]
["DODGE DAKOTA  335"]
["DODGE DAKOTA  355"]
["DODGE DAKOTA  390"]
["FORD  F-250  400"]
["CHEVROLET ASTRO 405"]
["FORD  F-150  410"]
["DODGE DAKOTA  430"]
["FORD  F-250  435"]
["FORD  F-550  440"]
["FORD  F-150  445"]
["CHEVROLET SILVERADO  465"]
["DODGE DAKOTA   470"]
["MITSUBISHI  FE140  500"]
["CHEVROLET 1500   565"]
["CHEVROLET COLORADO  575"]
["CHEVROLET COLORADO  585"]
["FORD  RANGER  590"]
["GMC SAFARI   625"]
["FORD F-150 4X4   640"]
["DODGE DAKOTA   670"]
["DODGE DAKOTA   675"]
["DODGE DAKOTA   680"]
["CHEVROLET SILVERADO  710"]
["FORD  F-150 XL  770"]
["FORD  F-150 XL  775"]
["FORD F-150  805"]
["CHEVROLET S-10  815"]
["DODGE DAKOTA   840"]
["GMC SIERRA   850"]
["CHEVROLET SILVERADO  885"]
["CHEVROLET SILVERADO  910"]
["CHEVROLET SILVERADO  915"]
["CHEVROLET SILVERADO  935"]
["CHEVROLET SILVERADO  940"]
["CHEVROLET SILVERADO  975"]
["GMC SIERRA   990"]
["FORD F-550   1000"]
["MITSHUBISHI FUSO 1005"]
["GMC SIERRA  1045"]
["CHEVROLET SILVERADO 1085"]
["MITSHUBISHI FUSO 1090"]
["REMORQUES"]
["REMORQUE POUR ROBOT  105"]
["REMORQUE POUR ROBOT  115"]
["REMORQUE FRUEHAUF  120"]
["REMORQUE FRUEHAUF  125"]
["REMORQUE MANAC V90 280"]
["REMORQUE MANAC V90 285"]
["REMORQUE TOWMA T10P  290"]
["REMORQUE   375"]
["REMORQUE ROUGE  425"]
["REMORQUE MANAC  520"]
["REMORQUE MANAC  525"]
["REMORQUE 54' N & N  650"]
["REMORQUE FORES  TW612  700"]
["REMORQUE R&B  KING 725"]
["REMORQUE FERMÉE MIDDLEBURY 765"]
["ROULOTTE  ATCO  8 x 16  810"]
["REMORQUE CAM   845"]
["ACCESSOIRES"]
["BALAI BOBCAT   395"]
["BALAI BOBCAT   635"]
["BALAI BOBCAT   645"]
["BALAI BOBCAT   790"]
["BALAI BOBCAT   970"]
["BALAI BOBCAT 1025"]
["BLASTRACK GP1220DC  225"]
["LAVEUSE PRESSION 5000LBS 550"]
["MACHINE GUNITE ALIVA 246 320"]
["P.A.M  1055"]
["P.A.M  1055"]
["P.A.M  1100"]
["POMPE À BÉTON BUNKER 655"]
["POMPE À BÉTON BUNKER 955"]
["POMPE BUNKER B100 605"]
["POMPE GRACO   705"]
["POMPE HONDA  V-TWIN 485"]
["POMPE IMER SMALL 50  665"]
["POMPE LITTLE GYP ''C'' 415"]
["TOUR ÉCLAIRAGE  MLT30 875"]
["TOUR ÉCLAIRAGE  MLT40 870"]
["UNITÉ HYDRAULIQUE BUNKER 660"]